bitfinex-derivatives/quotes_ETHF0:USTF0_20251220
["timestamp","ask_amount","ask_price","bid_price","bid_amount"]
[1766240567100,2.67838589,2975.9,2974.9,4.109]
[1766240567802,2.67838589,2975.9,2974.8,0.00504303]
[1766240568102,2.67838589,2975.9,2974.9,4.064]
[1766240568902,2.67838589,2975.9,2974.8,0.00504303]
[1766240569095,2.67838589,2975.9,2974.9,3.361]
[1766240572600,3.361,2976.0,2974.9,3.361]
[1766240572798,6.03938589,2976.0,2974.9,3.361]
[1766240580808,6.03938589,2976.0,2974.8,0.00504303]
[1766240581009,6.03938589,2976.0,2974.9,3.361]
[1766240581308,2.67838589,2975.8,2974.9,3.361]
[1766240596123,2.67838589,2975.8,2974.8,0.00504303]
[1766240596328,2.67838589,2975.8,2974.9,3.361]
[1766240596525,2.67838589,2975.3,2974.8,0.00504303]
[1766240596730,2.67838589,2975.3,2974.8,3.36604303]
[1766240597429,2.67915434,2975.5,2974.8,3.36604303]
[1766240601331,2.67915434,2975.4,2974.8,3.36604303]
[1766240601527,3.361,2975.7,2974.8,3.36604303]
[1766240601528,2.67923823,2975.6,2974.8,3.36604303]
[1766240601729,3.361,2975.7,2974.8,0.00504303]
[1766240601924,3.361,2975.7,2974.9,3.361]
[1766240603327,2.67923823,2975.6,2974.9,3.361]
[1766240611831,2.67923823,2975.6,2974.8,0.00504303]
[1766240612030,2.67923823,2975.6,2974.9,3.361]
[1766240625446,3.361,2975.7,2974.9,3.361]
[1766240630954,6.04023823,2975.7,2974.9,3.361]
[1766240634255,6.04023823,2975.7,2974.8,0.00504303]
[1766240634556,6.04023823,2975.7,2974.9,3.361]
[1766240635159,6.04006287,2975.7,2974.9,3.361]
[1766240636954,6.04006287,2975.7,2974.9,4.33608988]
[1766240637158,3.361,2975.7,2974.9,4.33608988]
[1766240637559,3.361,2975.7,2974.9,3.361]
[1766240647156,3.361,2976.0,2974.9,3.361]
[1766240650764,3.361,2976.0,2975.0,2.67906287]
[1766240650967,3.361,2976.0,2974.9,3.361]
[1766240655571,3.361,2976.0,2974.8,0.00504303]
[1766240655777,3.361,2976.0,2974.9,4.007]
[1766240657879,0.00504303,2976.1,2974.9,4.007]
[1766240661381,0.00504303,2976.1,2975.1,2.67776638]
[1766240661580,0.00504303,2976.1,2975.2,3.361]
[1766240663275,2.67776638,2976.0,2975.2,3.361]
[1766240663675,0.00504303,2976.1,2975.2,3.361]
[1766240667485,2.67776638,2976.0,2975.2,3.361]
[1766240670694,2.67776638,2975.6,2975.3,3.361]
[1766240670887,2.67776638,2975.4,2975.0,3.361]
[1766240671588,2.67905942,2975.5,2975.0,3.361]
[1766240671784,2.67905942,2975.5,2974.8,0.00504303]
[1766240672095,2.67905942,2975.5,2974.9,3.361]
[1766240675896,2.67905942,2975.5,2974.8,0.00504303]
[1766240676088,2.67905942,2975.5,2974.9,3.361]
[1766240678497,3.361,2975.7,2974.9,3.361]
[1766240678797,2.67905942,2975.6,2974.9,3.361]
[1766240685502,2.67905942,2975.6,2974.8,0.00504303]
[1766240686103,2.67905942,2975.6,2974.9,3.361]
[1766240686300,3.361,2975.7,2974.9,3.361]
[1766240687798,2.67905942,2975.6,2974.8,0.00504303]
[1766240688003,2.67905942,2975.6,2975.0,3.361]
[1766240692707,2.67905942,2975.6,2974.8,0.00504303]
[1766240692905,2.67905942,2975.6,2974.9,3.361]
[1766240694304,2.67905942,2975.6,2974.8,0.00504303]
[1766240694505,2.67905942,2975.6,2974.9,3.361]
[1766240698305,2.67905942,2975.6,2974.8,0.00504303]
[1766240698505,2.67905942,2975.6,2974.9,3.361]
[1766240700315,2.67905942,2975.4,2974.9,3.361]
[1766240700513,2.67905942,2975.4,2974.8,0.00504303]
[1766240700815,2.67905942,2975.4,2974.8,3.36604303]
[1766240702311,2.67905942,2975.5,2974.8,3.36604303]
[1766240706917,3.361,2975.7,2974.8,3.36604303]
[1766240707117,2.67905942,2975.6,2974.8,3.36604303]
[1766240708116,2.67905616,2975.5,2974.8,3.36604303]
[1766240709118,2.67905616,2975.6,2974.8,3.36604303]
[1766240711718,3.361,2975.7,2974.8,3.36604303]
[1766240714826,3.361,2975.7,2974.8,6.04509919]
[1766240719117,3.361,2975.7,2974.8,3.36604303]
[1766240724022,3.361,2975.7,2974.9,3.361]
[1766240726923,3.361,2975.7,2974.8,0.00504303]
[1766240727117,3.361,2975.7,2974.8,3.36604303]
[1766240754752,3.361,2975.7,2974.8,0.00504303]
[1766240754952,3.361,2975.7,2974.9,3.361]
[1766240762362,3.361,2975.7,2974.8,3.36604303]
[1766240766466,3.361,2975.7,2974.8,0.00504303]
[1766240766770,3.361,2975.7,2974.8,3.36604303]
[1766240789983,3.361,2975.7,2974.9,2.67870118]
[1766240801394,3.361,2975.7,2974.8,6.04474421]
[1766240816102,3.361,2975.7,2974.8,6.04457414]
[1766240823704,3.361,2975.7,2975.0,2.67853111]
[1766240830620,3.361,2975.7,2974.8,3.36604303]
[1766240830920,3.361,2975.7,2974.9,3.361]
[1766240840222,3.361,2975.7,2974.9,6.03953111]
[1766240845327,3.361,2975.7,2974.9,3.361]
[1766240879751,0.00504303,2976.1,2974.9,6.78028172]
[1766240880056,3.361,2976.0,2975.0,3.361]
[1766240880260,3.361,2976.0,2975.0,4.09458183]
[1766240881547,3.361,2976.0,2975.0,3.361]
[1766240881753,3.361,2976.0,2975.0,4.08747265]
[1766240882857,3.361,2976.0,2975.0,4.08812981]
[1766240883260,3.361,2976.0,2974.8,0.00504303]
[1766240883557,2.67872715,2975.9,2974.9,3.361]
[1766240884651,2.67872715,2975.9,2974.8,0.73224094]
[1766240884853,2.67872715,2975.9,2974.9,3.361]
[1766240887654,2.67872715,2975.9,2974.8,0.74036174]
[1766240887857,2.67872715,2975.9,2974.9,3.361]
[1766240888662,2.6790173,2975.9,2974.9,3.361]
[1766240894461,2.6790173,2975.9,2974.8,0.7438963]
[1766240894968,2.6790173,2975.9,2974.8,0.00504303]
[1766240900675,8.404,2975.8,2974.8,0.00504303]
[1766240900970,3.361,2975.7,2974.8,0.00504303]
[1766240904876,0.00504303,2976.1,2974.8,0.00504303]
[1766240905177,20.649,2976.0,2974.8,2.68406033]
[1766240905381,20.649,2976.0,2974.9,2.67828943]
[1766240906278,2.68333246,2976.1,2974.9,2.67828943]
[1766240906474,3.361,2976.0,2974.9,2.67828943]
[1766240907876,2.68333246,2976.1,2974.9,2.67828943]
[1766240908078,13.041,2976.0,2974.9,2.67828943]
[1766240909370,13.041,2976.0,2975.1,2.67828943]
[1766240909971,0.00504303,2976.1,2975.1,2.67828943]
[1766240910172,0.00504303,2976.1,2975.3,2.67828943]
[1766240910173,3.361,2976.0,2975.3,2.67828943]
[1766240910378,3.361,2976.0,2975.5,2.67828943]
[1766240910675,3.374,2976.3,2975.7,2.67828943]
[1766240918282,3.361,2976.3,2975.7,2.67828943]
[1766240918479,3.361,2976.3,2975.3,2.67828943]
[1766240918673,2.67828943,2976.1,2975.0,2.67828943]
[1766240918875,2.67828943,2976.1,2975.1,3.361]
[1766240920483,2.67828943,2975.9,2974.9,0.72816505]
[1766240920683,2.67828943,2975.7,2975.0,3.361]
[1766240920882,3.361,2975.6,2975.0,3.361]
[1766240922081,3.361,2975.6,2975.0,6.03928943]
[1766240924688,3.361,2975.6,2975.0,6.03928519]
[1766240925188,3.361,2975.6,2975.0,3.361]
[1766240934088,3.361,2975.6,2974.9,0.72816505]
[1766240934287,3.361,2975.6,2974.9,4.08916505]
[1766240934689,3.361,2975.6,2974.9,3.361]
[1766240947515,3.361,2975.6,2974.8,0.00504303]
[1766240947716,3.361,2975.6,2974.9,3.361]
[1766240957818,3.361,2975.6,2974.9,6.03928519]
[1766240958119,3.361,2975.6,2975.1,2.67828519]
[1766240961726,3.361,2975.6,2975.1,2.67807185]
[1766240962923,0.4321,2975.6,2975.1,2.67807185]
[1766240963120,3.361,2975.8,2975.1,2.67807185]
[1766240967530,3.361,2975.8,2974.9,6.0389892]
[1766240995142,3.361,2975.8,2974.9,3.361]
[1766241001345,3.361,2975.8,2974.8,0.00504303]
[1766241001547,3.361,2975.8,2974.9,3.361]
[1766241002951,3.361,2975.8,2975.0,2.67833588]
[1766241004146,1.20425585,2976.9,2975.3,2.67833588]
[1766241004349,16.509,2976.8,2975.6,2.67833588]
[1766241004553,3.36350677,2977.1,2975.7,3.361]
[1766241004754,4.35586896,2977.1,2975.7,3.361]
[1766241005651,7.03420484,2977.1,2975.7,3.361]
[1766241005849,6.04184265,2977.1,2975.7,3.361]
[1766241006650,2.67833588,2976.8,2975.7,3.361]
[1766241006850,3.361,2976.7,2975.7,3.361]
[1766241008847,2.67833588,2976.5,2975.8,3.361]
[1766241009155,2.67833588,2976.5,2975.4,3.25799708]
[1766241009156,3.361,2976.4,2975.7,3.361]
[1766241010549,3.361,2976.4,2975.4,4.07999708]
[1766241010851,11.764,2976.4,2975.4,0.71899708]
[1766241011046,11.764,2976.4,2975.3,3.361]
[1766241011241,11.764,2976.4,2975.1,0.71840087]
[1766241011446,11.764,2976.4,2975.2,3.361]
[1766241012855,11.764,2976.4,2975.1,0.71840087]
[1766241013056,11.764,2976.4,2975.2,3.361]
[1766241020658,11.764,2976.4,2975.3,2.67833588]
[1766241027361,11.764,2976.4,2975.5,2.67738427]
[1766241027555,11.764,2976.4,2975.5,6.03838427]
[1766241028962,11.764,2976.4,2975.7,2.67738427]
[1766241029959,11.764,2976.4,2975.5,6.03838427]
[1766241034570,11.764,2976.4,2975.5,6.03837445]
[1766241035862,11.764,2976.4,2975.5,3.361]
[1766241036063,11.764,2976.4,2975.5,6.03837445]
[1766241038670,11.764,2976.4,2975.9,2.67737445]
[1766241038973,3.361,2976.7,2976.1,2.67737445]
[1766241039178,3.361,2976.7,2976.1,0.00504303]
[1766241043681,3.361,2976.7,2976.2,2.67737445]
[1766241045478,3.361,2976.9,2976.4,2.67737445]
[1766241048285,0.00250677,2977.1,2976.4,2.67737445]
[1766241054296,0.00250677,2977.1,2976.3,6.03837445]
[1766241055192,0.00250677,2977.1,2976.3,3.361]
[1766241055396,2.67737445,2977.0,2976.1,0.73346244]
[1766241055590,2.67737445,2976.6,2976.1,0.00504303]
[1766241055788,3.36,2976.7,2976.1,2.67737445]
[1766241055994,3.36,2976.8,2976.5,2.67737445]
[1766241056495,3.36250677,2977.1,2976.5,2.67737445]
[1766241056690,3.3675498,2977.1,2976.5,2.68241748]
[1766241058395,3.3675498,2977.1,2976.5,6.04241748]
[1766241058692,3.3675498,2977.1,2976.5,3.36504303]
[1766241060702,3.3675498,2977.1,2976.5,0.43284303]
[1766241061703,3.3675498,2977.1,2976.5,0.43788606]
[1766241064502,3.3675498,2977.1,2976.5,0.00504303]
[1766241064903,3.3675498,2977.1,2976.5,4.303e-05]
[1766241065305,2.67737445,2977.0,2976.5,4.303e-05]
[1766241065601,2.67737445,2976.8,2976.5,4.303e-05]
[1766241065797,6.03737445,2976.8,2976.5,4.303e-05]
[1766241066303,2.67737445,2976.6,2975.8,3.36]
[1766241066504,3.36,2976.5,2975.8,3.36]
[1766241067201,3.36,2976.5,2975.9,0.00504303]
[1766241068708,3.36,2976.5,2975.9,4.303e-05]
[1766241070712,6.03759437,2976.5,2975.9,4.303e-05]
[1766241080508,3.36,2976.5,2975.9,4.303e-05]
[1766241083715,3.36,2976.5,2975.9,3.36004303]
[1766241088824,3.36,2976.8,2975.9,3.36004303]
[1766241089125,3.36,2976.8,2976.1,2.6770416]
[1766241089424,3.36,2976.8,2976.2,3.36]
[1766241090725,0.0075498,2977.1,2976.2,3.36]
[1766241090924,3.3675498,2977.1,2976.2,3.36]
[1766241105931,14.047,2977.9,2976.5,2.6770416]
[1766241106129,3.36,2977.6,2976.6,3.36]
[1766241106336,3.36,2977.6,2976.2,0.81924533]
[1766241106626,2.6770416,2977.5,2976.2,0.81924533]
[1766241106826,0.00504303,2977.1,2976.3,2.0201]
[1766241107036,3.36,2977.0,2975.9,4.303e-05]
[1766241107331,3.36,2977.0,2976.1,3.36]
[1766241111930,3.36,2977.0,2976.2,2.67691983]
[1766241112435,0.00504303,2977.1,2976.2,2.67691983]
[1766241112933,4.303e-05,2977.1,2976.2,2.67691983]
[1766241116028,4.303e-05,2977.1,2976.3,3.36]
[1766241116229,4.303e-05,2977.1,2976.4,3.36]
[1766241121040,3.36,2977.0,2975.9,4.303e-05]
[1766241121232,3.36,2977.0,2976.0,3.36]
[1766241123541,3.36,2977.0,2975.9,4.303e-05]
[1766241123739,3.36,2977.0,2976.0,3.36]
[1766241124336,6.03691983,2977.0,2976.0,3.36]
[1766241129355,14.43691983,2977.0,2976.0,3.36]
[1766241134453,14.43691983,2977.0,2975.9,4.303e-05]
[1766241134652,14.43691983,2977.0,2976.0,3.36]
[1766241143157,11.76,2977.0,2976.0,3.36]
[1766241147364,2.67686944,2976.9,2976.0,3.36]
[1766241160382,2.67686944,2976.7,2976.0,3.36]
[1766241160684,6.03686944,2976.7,2976.0,3.36]
[1766241164189,3.36,2976.7,2976.0,3.36]
[1766241178086,2.67686944,2976.6,2975.9,4.303e-05]
[1766241178292,3.36,2976.7,2975.9,3.36004303]
[1766241178485,2.67686944,2976.6,2975.9,3.36004303]
[1766241179289,6.03726616,2976.7,2975.9,3.36004303]
[1766241180087,3.36,2976.7,2975.9,3.36004303]
[1766241180386,8.4,2977.0,2976.3,2.67726616]
[1766241180592,11.76,2977.0,2976.3,2.67726616]
[1766241180784,3.36,2977.0,2976.3,2.67726616]
[1766241204401,3.36,2977.0,2976.2,3.36]
[1766241215912,3.36,2977.0,2975.9,4.303e-05]
[1766241216113,2.67615724,2976.9,2975.9,4.303e-05]
[1766241220821,6.03615724,2977.0,2975.9,4.303e-05]
[1766241251342,2.67720824,2976.9,2975.9,4.303e-05]
[1766241255951,3.36,2977.0,2975.9,4.303e-05]
[1766241257639,6.03720824,2977.0,2975.9,4.303e-05]
[1766241258253,8.401,2976.9,2975.9,4.303e-05]
[1766241258556,2.67720824,2976.7,2975.9,4.303e-05]
[1766241258855,3.36,2976.6,2975.9,4.303e-05]
[1766241271362,6.03741562,2976.6,2975.9,4.303e-05]
[1766241288873,6.03741579,2976.6,2975.9,4.303e-05]
[1766241298588,2.67741579,2976.4,2975.9,4.303e-05]
[1766241298891,3.36,2976.3,2975.9,4.303e-05]
[1766241303087,3.36,2976.5,2975.9,4.303e-05]
[1766241303285,3.0442,2976.5,2975.9,4.303e-05]
[1766241303495,3.36,2976.6,2975.9,4.303e-05]
[1766241307193,3.36,2976.6,2976.0,3.36]
[1766241307391,3.36,2977.0,2976.1,2.67741579]
[1766241307587,3.36,2977.0,2976.3,2.67741579]
[1766241307788,3.36,2977.0,2976.3,6.03741579]
[1766241308696,3.36,2977.0,2976.3,3.36]
[1766241315994,2.67741579,2976.9,2975.9,4.303e-05]
[1766241316194,2.67741579,2976.9,2976.0,3.36]
[1766241317895,2.67741579,2976.5,2975.9,4.303e-05]
[1766241318085,2.67741579,2976.5,2975.9,3.36004303]
[1766241318596,3.36,2976.6,2975.9,3.36004303]
[1766241318784,4.303e-05,2977.1,2976.0,2.67741579]
[1766241318991,3.36,2977.0,2976.0,2.67741579]
[1766241319291,3.36,2977.0,2976.2,2.67741579]
[1766241319593,3.36,2977.0,2976.2,6.03741579]
[1766241324789,2.67741579,2976.9,2975.9,4.303e-05]
[1766241324998,2.67681463,2976.9,2975.9,3.36004303]
[1766241326197,3.36,2977.0,2975.9,3.36004303]
[1766241326799,3.36,2977.0,2976.0,2.67681463]
[1766241330494,3.36,2977.0,2975.9,3.36004303]
[1766241330695,3.36,2977.0,2975.9,6.03685766]
[1766241331404,3.36,2977.0,2975.9,3.36004303]
[1766241331698,3.36,2977.0,2975.9,4.303e-05]
[1766241332003,3.36,2977.0,2976.0,3.36]
[1766241340907,3.36,2977.0,2975.9,4.303e-05]
[1766241341107,3.36,2977.0,2976.0,3.36]
[1766241345008,3.36,2977.0,2975.9,4.303e-05]
[1766241345209,3.36,2977.0,2976.0,3.36]
[1766241347705,3.36,2977.0,2975.9,4.303e-05]
[1766241347906,6.03661436,2977.0,2975.9,3.36004303]
[1766241350315,3.36,2977.0,2975.9,3.36004303]
[1766241363322,3.36,2977.0,2976.0,3.36]
[1766241365922,2.67702153,2976.8,2976.0,3.36]
[1766241366116,3.36,2976.7,2976.0,3.36]
[1766241367826,3.36,2976.7,2975.9,3.36004303]
[1766241372031,3.36,2976.7,2975.9,4.303e-05]
[1766241372222,3.36,2976.7,2975.9,3.36004303]
[1766241378138,3.36,2976.7,2975.9,4.303e-05]
[1766241393359,6.03721643,2976.7,2975.9,4.303e-05]
[1766241398361,2.67742107,2976.6,2975.9,4.303e-05]
[1766241398663,3.36,2976.5,2975.9,4.303e-05]
[1766241421884,8.401,2976.8,2975.9,4.303e-05]
[1766241422088,3.36,2976.8,2976.0,3.36]
[1766241432404,6.03742107,2976.8,2976.0,3.36]
[1766241432611,2.67742107,2976.6,2976.0,3.36]
[1766241434809,2.6772178,2976.7,2976.0,3.36]
[1766241435810,2.6772178,2976.5,2975.9,4.303e-05]
[1766241436118,2.6772178,2976.5,2975.9,3.36004303]
[1766241436608,6.0372178,2976.5,2975.9,4.303e-05]
[1766241449818,3.36,2976.5,2975.9,4.303e-05]
[1766241471432,3.36,2976.5,2975.9,3.36004303]
[1766241480543,3.36,2976.5,2975.9,4.303e-05]
[1766241486449,3.36,2976.5,2976.0,3.36]
[1766241514275,3.36,2976.8,2976.0,3.36]
[1766241518779,6.03668253,2976.8,2976.0,3.36]
[1766241529284,6.03668253,2976.8,2975.9,4.303e-05]
[1766241529489,2.67668253,2976.6,2976.0,3.36]
[1766241529688,6.03668253,2976.8,2976.0,3.36]
[1766241531590,3.36,2976.8,2976.0,3.36]
[1766241531793,2.67668253,2976.7,2976.0,3.36]
[1766241538695,3.36,2976.8,2976.0,3.36]
[1766241541789,3.36,2976.8,2976.1,2.67668253]
[1766241543702,3.36,2976.8,2976.0,6.0364568]
[1766241545895,3.36,2976.8,2976.0,3.36]
[1766241558009,2.6764568,2976.7,2975.9,4.303e-05]
[1766241558210,2.6764568,2976.7,2976.0,3.36]
[1766241559209,2.6764568,2976.7,2975.9,4.303e-05]
[1766241559408,2.6764568,2976.7,2976.0,3.36]
[1766241566117,3.36,2976.8,2976.0,3.36]
[1766241566622,3.36,2976.8,2976.0,6.0364568]
[1766241575330,3.36,2976.8,2976.0,3.36]
[1766241576431,3.36004303,2977.1,2976.0,3.36]
[1766241576635,4.303e-05,2977.1,2976.2,2.67633957]
[1766241576834,4.303e-05,2977.1,2976.3,3.36]
[1766241577134,4.303e-05,2977.1,2976.5,2.67633957]
[1766241577334,4.303e-05,2977.1,2976.6,3.36]
[1766241578131,0.0027096,2977.5,2976.8,2.67633957]
[1766241578336,0.0027096,2977.5,2976.9,3.36]
[1766241579235,0.00775263,2977.5,2976.9,3.36]
[1766241583135,0.00775263,2977.5,2976.9,4.1330732]
[1766241583339,14.982,2978.1,2977.0,2.67491082]
[1766241583547,14.982,2978.1,2976.9,4.1330732]
[1766241584230,6.58394906,2978.1,2977.2,2.67491082]
[1766241584436,6.58394906,2978.1,2977.3,3.36]
[1766241585441,6.58394906,2978.1,2977.4,0.00504303]
[1766241586537,3.36294906,2978.1,2977.4,0.00504303]
[1766241588540,0.00294906,2978.1,2977.4,0.00504303]
[1766241588738,3.359,2978.8,2977.8,2.67491082]
[1766241588939,3.359,2978.7,2977.8,6.03391082]
[1766241589141,3.359,2978.8,2977.8,6.03391082]
[1766241589839,3.36254161,2978.8,2977.8,3.359]
[1766241591544,3.36254161,2978.8,2977.4,2.67995385]
[1766241591751,3.36254161,2978.8,2977.6,1.837]
[1766241592649,3.36254161,2978.8,2977.4,2.67995385]
[1766241592849,3.36254161,2978.8,2977.5,4.269]
[1766241593241,3.36254161,2978.8,2977.6,1.864]
[1766241593440,3.36254161,2978.8,2977.6,5.223]
[1766241595748,2.67491082,2978.1,2977.5,3.359]
[1766241595941,3.359,2978.1,2977.5,3.359]
[1766241596137,3.359,2978.1,2977.4,0.00504303]
[1766241608056,3.359,2978.1,2977.4,4.303e-05]
[1766241608255,2.67491082,2978.0,2977.2,3.359]
[1766241608656,3.359,2978.1,2977.2,3.359]
[1766241609360,0.00504303,2977.9,2977.4,0.00504303]
[1766241611056,0.00504303,2977.9,2977.2,3.359]
[1766241611257,3.359,2977.8,2977.2,1.7369]
[1766241611953,3.359,2977.8,2976.8,0.00342493]
[1766241612157,3.359,2977.8,2977.1,4.303e-05]
[1766241621672,2.6753143,2977.4,2976.7,3.359]
[1766241621861,6.0343143,2977.4,2976.4,0.77988586]
[1766241622057,6.0343143,2977.4,2976.5,3.359]
[1766241622658,6.0343143,2977.4,2976.7,0.00504303]
[1766241627668,6.0343143,2977.4,2976.7,4.303e-05]
[1766241630665,2.6753143,2977.1,2976.7,4.303e-05]
[1766241630863,6.0343143,2977.1,2976.3,3.359]
[1766241631068,6.0343143,2977.1,2975.8,0.74610618]
[1766241631260,6.0343143,2977.1,2975.9,5.586]
[1766241631972,6.0343143,2977.1,2976.2,0.00504303]
[1766241632167,6.0343143,2977.1,2976.3,3.359]
[1766241633172,6.0343143,2977.1,2976.2,0.00504303]
[1766241633470,6.0343143,2977.1,2976.2,3.36404303]
[1766241635366,2.67669597,2977.0,2976.2,3.36404303]
[1766241636960,2.67669597,2976.8,2976.2,3.36404303]
[1766241640070,2.67669597,2976.8,2976.2,0.00504303]
[1766241640566,2.67669597,2976.8,2976.2,3.36404303]
[1766241640762,2.67669597,2976.4,2975.9,0.00341585]
[1766241640962,2.67970256,2976.4,2975.9,3.36241585]
[1766241641874,2.67970256,2976.4,2975.9,3.36745888]
[1766241642371,2.67970256,2976.4,2975.3,3.59066246]
[1766241642576,2.67669597,2976.2,2975.4,3.36]
[1766241643265,2.67669597,2976.0,2974.9,2.67669597]
[1766241643464,2.67669597,2976.0,2975.5,0.00336204]
[1766241643465,2.681739,2976.0,2975.5,0.00336204]
[1766241643674,0.00504303,2976.0,2975.5,3.36336204]
[1766241644073,0.00504303,2976.0,2975.5,0.00336204]
[1766241651874,0.00504303,2976.0,2975.4,3.36]
[1766241652378,2.67669597,2975.9,2975.3,0.00435159]
[1766241652572,2.67669597,2975.9,2975.3,3.36435159]
[1766241653486,2.68348009,2976.0,2975.3,3.36435159]
[1766241660287,0.00504303,2976.0,2975.3,3.36435159]
[1766241665901,2.67843706,2975.9,2975.3,3.36435159]
[1766241666102,6.03943706,2975.9,2975.3,0.00435159]
[1766241671103,2.67843706,2975.7,2975.1,3.361]
[1766241671404,2.67843706,2975.7,2974.5,3.69758199]
[1766241671705,2.67843706,2975.7,2974.6,5.144]
[1766241671904,2.67843706,2975.7,2974.6,5.14836352]
[1766241672791,0.00504303,2976.0,2974.6,5.14836352]
[1766241672792,2.67843706,2975.3,2974.6,0.00436352]
[1766241672997,2.67843706,2975.3,2974.7,3.361]
[1766241673198,2.67843706,2975.3,2974.6,0.00436352]
[1766241673606,2.67843706,2975.3,2974.7,3.361]
[1766241673806,2.67843706,2974.9,2974.5,3.361]
[1766241674903,2.67843706,2974.9,2974.5,3.36478347]
[1766241675101,2.67843706,2974.9,2974.5,0.00378347]
[1766241677708,2.67843706,2974.7,2974.0,3.361]
[1766241677905,2.67843706,2974.5,2973.7,4.4918536]
[1766241678104,0.00504303,2974.4,2973.8,3.361]
[1766241678407,0.00504303,2974.4,2973.9,3.361]
[1766241678609,0.00504303,2974.4,2973.9,3.36350279]
[1766241684010,0.00504303,2974.4,2973.9,0.00250279]
[1766241684210,0.00504303,2974.4,2974.0,3.362]
[1766241692917,0.00504303,2974.4,2973.9,0.00250279]
[1766241693122,0.00504303,2974.4,2973.9,3.36450279]
[1766241694725,4.303e-05,2974.4,2973.9,3.36450279]
[1766241694923,4.303e-05,2974.4,2973.9,0.00250279]
[1766241695127,4.303e-05,2974.4,2974.0,3.362]
[1766241701832,2.68040816,2976.8,2974.0,6.04240816]
[1766241702026,2.68040816,2975.4,2974.0,6.04240816]
[1766241702223,2.68040816,2975.4,2974.0,3.362]
[1766241703037,0.00504303,2975.0,2974.0,3.362]
[1766241703335,3.36704303,2975.0,2974.0,3.362]
[1766241706130,3.36704303,2975.0,2974.0,6.04240816]
[1766241707236,3.36704303,2975.0,2974.0,3.362]
[1766241710134,3.05094303,2975.0,2974.2,2.68040816]
[1766241710339,3.362,2975.4,2974.3,3.362]
[1766241711134,3.362,2975.7,2974.5,2.68040816]
[1766241711339,3.362,2975.7,2974.6,3.362]
[1766241712339,0.00504303,2975.4,2974.6,3.362]
[1766241712934,4.303e-05,2975.4,2974.6,3.362]
[1766241718238,4.303e-05,2975.4,2974.6,3.8]
[1766241718442,4.303e-05,2975.4,2974.6,2.695]
[1766241718646,4.303e-05,2975.4,2974.7,3.362]
[1766241722048,4.303e-05,2975.4,2974.3,2.68040816]
[1766241722645,4.303e-05,2975.4,2974.4,5.226]
[1766241724051,3.36204303,2975.4,2974.3,2.68040816]
[1766241724249,3.36204303,2975.4,2974.4,7.854]
[1766241728651,3.36204303,2975.4,2974.2,1.11351354]
[1766241728858,3.36204303,2975.4,2974.3,3.362]
[1766241736570,3.36204303,2975.4,2974.4,2.67909955]
[1766241747377,4.303e-05,2975.4,2974.4,2.67909955]
[1766241749882,4.303e-05,2975.4,2974.7,2.67909955]
[1766241750180,4.303e-05,2975.4,2974.8,3.362]
[1766241759477,4.303e-05,2975.4,2974.9,2.67864583]
[1766241761691,4.303e-05,2975.4,2974.9,2.67821997]
[1766241762078,3.361,2976.1,2975.1,2.67821997]
[1766241762279,3.361,2976.1,2975.2,3.361]
[1766241762688,3.361,2976.1,2975.5,2.67821997]
[1766241762989,3.361,2976.1,2975.5,6.03921997]
[1766241763188,3.36604303,2976.1,2975.5,6.044263]
[1766241768393,0.00504303,2976.1,2975.7,2.67821997]
[1766241768793,0.00504303,2976.1,2975.8,3.361]
[1766241768981,3.36400659,2976.4,2975.8,3.361]
[1766241769386,0.00300659,2976.4,2975.9,2.67821997]
[1766241769985,0.00804962,2976.4,2975.9,2.67821997]
[1766241772093,3.361,2976.7,2976.1,2.67821997]
[1766241772292,3.361,2976.7,2976.2,3.361]
[1766241773094,3.36765204,2976.7,2976.2,3.36354877]
[1766241774393,0.00665204,2976.7,2976.2,3.36354877]
[1766241786797,3.361,2977.0,2976.2,3.36354877]
[1766241787302,3.361,2977.0,2976.2,0.00254877]
[1766241787503,6.03921997,2977.0,2976.3,3.36]
[1766241787700,6.04226474,2977.0,2976.3,3.36]
[1766241789501,2.67821997,2976.8,2976.2,0.00254877]
[1766241789698,2.67821997,2976.4,2975.9,3.36]
[1766241789898,2.67821997,2976.6,2975.9,3.36]
[1766241790704,2.67821997,2976.6,2975.9,3.36322403]
[1766241790900,3.36,2976.7,2975.9,3.36322403]
[1766241793409,6.03821997,2976.7,2975.9,3.36322403]
[1766241797708,2.67730134,2976.6,2975.9,3.36322403]
[1766241798115,2.67730134,2976.6,2975.9,0.00322403]
[1766241798316,2.67730134,2976.6,2975.9,3.36322403]
[1766241802417,3.36,2976.7,2975.9,3.36322403]
[1766241804818,2.67730134,2976.6,2975.9,3.36322403]
[1766241806319,2.67730134,2976.6,2975.9,0.00322403]
[1766241806512,2.67730134,2976.6,2975.9,3.36322403]
[1766241806712,2.67730134,2976.6,2975.9,0.00322403]
[1766241809623,2.67730134,2976.6,2975.9,3.36322403]
[1766241810818,6.03730134,2976.8,2975.9,3.36322403]
[1766241812425,3.36,2976.8,2975.9,3.36322403]
[1766241812835,3.36,2976.8,2975.9,6.04052537]
[1766241816227,0.00304477,2977.0,2975.9,6.04052537]
[1766241816624,0.00304477,2977.0,2976.1,2.67730134]
[1766241816821,0.00304477,2977.0,2976.2,3.36]
[1766241817921,4.477e-05,2977.0,2976.3,2.67730134]
[1766241819434,4.477e-05,2977.0,2976.2,3.36]
[1766241820026,4.477e-05,2977.0,2976.2,6.601]
[1766241822436,4.477e-05,2977.0,2976.2,7.74079391]
[1766241822833,3.36,2977.5,2976.4,2.67589606]
[1766241823031,3.36,2977.5,2976.5,3.36]
[1766241823736,3.36,2977.9,2977.0,2.67589606]
[1766241824036,3.36235743,2977.9,2977.2,0.00504303]
[1766241825340,0.00235743,2977.9,2977.2,0.00504303]
[1766241825839,3.41164303,2978.2,2977.2,0.00504303]
[1766241826131,3.41164303,2978.2,2977.3,2.67589606]
[1766241826339,3.41164303,2978.2,2977.4,3.36]
[1766241826735,0.05567258,2978.2,2977.4,3.36]